fUSD/lending_fUSD_20250806
["ID","MTS","AMOUNT","RATE_DAILY","PERIOD"]
[377545232,1754438451512,2718.65,0.0003,120]
[377545241,1754438577535,420.62205332,0.00030136,120]
[377545260,1754438713344,707.27,0.00018082,2]
[377545261,1754438718633,150.0,0.00017088,2]
[377545262,1754438718670,150.0,0.00017721,2]
[377545263,1754438718733,150.0,0.00018353,2]
[377545264,1754438718940,150.0,0.00017088,2]
[377545265,1754438718996,150.0,0.00017325,2]
[377545266,1754438719212,150.0,0.00017562,2]
[377545267,1754438719292,150.0,0.000178,2]
[377545268,1754438719380,150.0,0.00018274,2]
[377545269,1754438719443,150.0,0.00018512,2]
[377545270,1754438719512,150.0,0.00018037,2]
[377545271,1754438719595,150.0,0.00017088,2]
[377545272,1754438719636,150.0,0.0001726,2]
[377545273,1754438719705,150.0,0.00017433,2]
[377545274,1754438719774,150.0,0.00017605,2]
[377545275,1754438719810,150.0,0.00017778,2]
[377545276,1754438719868,150.0,0.00017951,2]
[377545277,1754438719935,150.0,0.00018123,2]
[377545278,1754438720003,150.0,0.00018296,2]
[377545279,1754438720103,150.0,0.00018468,2]
[377545281,1754438724314,150.0,0.00017088,2]
[377545282,1754438724377,150.0,0.00017721,2]
[377545283,1754438724435,150.0,0.00018353,2]
[377545284,1754438727942,150.0,0.00017088,2]
[377545285,1754438727973,150.0,0.00018037,2]
[377545286,1754438728855,150.0,0.00017088,2]
[377545287,1754438730773,150.0,0.00017088,2]
[377545288,1754438730824,150.0,0.00018037,2]
[377545289,1754438737537,150.0,0.00017088,2]
[377545290,1754438737635,150.0,0.00017088,2]
[377545291,1754438737822,-152.35755919,0.0001862,2]
[377545292,1754438739587,-158.94290462,0.0001862,2]
[377545293,1754438741278,14.58329803,0.00017088,2]
[377545294,1754438741301,135.41670197,0.00017088,2]
[377545295,1754438742416,-168.4591274,0.0001862,2]
[377545296,1754438745550,-93.27740879,0.0001862,2]
[377545297,1754438745575,-150.0,0.00018641,2]
[377545298,1754438745600,-27.2293294,0.00018749,2]
[377545299,1754438746544,150.0,0.00018037,2]
[377545300,1754438747845,-122.7706706,0.00018749,2]
[377545310,1754438970154,-150.0,0.00018814,2]
[377545311,1754438970175,-2500.0,0.00018891,3]
[377545312,1754438970201,-1200.0,0.00018899,2]
[377545313,1754438970221,-300.0,0.00018899,2]
[377545314,1754438970245,-300.0,0.00018899,2]
[377545315,1754438970267,-312.27834794,0.000189,2]
[377545316,1754438970288,-272.29015606,0.000189,2]
[377545317,1754438990622,-276.712627,0.000187,2]
[377545318,1754438993340,-193.38070165,0.000187,2]
[377545319,1754439007825,-159.49749142,0.000187,2]
[377545320,1754439009567,-151.33,0.000187,2]
[377545321,1754439013017,-241.04150545,0.000187,2]
[377545322,1754439017683,-180.88739213,0.000187,2]
[377545323,1754439027731,-151.0,0.000187,2]
[377545324,1754439030405,-64.90648644,0.000187,2]
[377545329,1754439032389,-58.47762366,0.000189,2]
[377545330,1754439032402,-1829.52237634,0.000189,3]
[377545331,1754439032495,-670.47762366,0.000189,3]
[377545332,1754439032505,-157.78440529,0.000189,2]
[377545333,1754439032514,-1276.7345999,0.000189,2]
[377545334,1754439032524,-1200.0,0.00018972,2]
[377545335,1754439032534,-300.0,0.00018972,2]
[377545336,1754439032543,-300.0,0.00018972,2]
[377545337,1754439032553,-500.0,0.00018973,2]
[377545338,1754439032562,-500.0,0.00018973,2]
[377545339,1754439032572,-500.0,0.00018973,2]
[377545340,1754439032581,-500.76235951,0.00018973,2]
[377545341,1754439032591,-500.0,0.00018973,2]
[377545342,1754439032601,-500.0,0.00018973,2]
[377545343,1754439032611,-500.0,0.00018973,2]
[377545344,1754439032620,-249.82054277,0.00018973,2]
[377545345,1754439032630,-342.31227381,0.00018973,2]
[377545346,1754439032640,-500.0,0.00018973,2]
[377545347,1754439032652,-500.0,0.00018973,2]
[377545348,1754439032667,-500.0,0.00018973,2]
[377545349,1754439032676,-500.0,0.00018973,2]
[377545350,1754439032686,-500.0,0.00018973,2]
[377545351,1754439032695,-500.0,0.00018973,2]
[377545352,1754439032705,-150.0,0.00018986,2]
[377545353,1754439032715,-198.40795141,0.00018986,2]
[377545354,1754439032727,-175.42870853,0.00018986,2]
[377545355,1754439032736,-150.0,0.00018986,2]
[377545356,1754439032746,-150.0,0.00018986,2]
[377545357,1754439032756,-150.0,0.00018986,2]
[377545359,1754439032765,-150.0,0.00018986,2]
[377545361,1754439032775,-150.0,0.00018986,2]
[377545362,1754439032785,-192.76297195,0.00018989,2]
[377545363,1754439032794,-611.06314323,0.00018998,2]
[377545364,1754439032804,-500.0,0.00018998,2]
[377545365,1754439032814,-500.0,0.00018998,2]
[377545366,1754439032824,-337.62482202,0.00018998,2]
[377545367,1754439032835,-500.0,0.00018998,2]
[377545368,1754439032844,-242.99863279,0.00018998,2]
[377545369,1754439032854,-365.35220263,0.00018998,2]
[377545370,1754439032863,-173.36176053,0.00018998,2]
[377545371,1754439032873,-34602.2457477,0.00018999,7]
[377545372,1754439032906,-94539.35048224,0.00018999,7]
[377545373,1754439032984,-485.78450157,0.00018999,7]
[377545374,1754439033027,-14250.45675107,0.00018999,7]
[377545375,1754439033038,-7160.24524521,0.00018999,7]
[377545406,1754439038483,-435.58855716,0.000189,2]
[377545407,1754439038493,-1452.41144284,0.000189,2]
[377545408,1754439038562,-373.02807039,0.000189,2]
[377545409,1754439038574,-807.13856788,0.000189,2]
[377545410,1754439038587,-570.39224271,0.000189,2]
[377545411,1754439038598,-963.01766303,0.000189,2]
[377545412,1754439038608,-495.16103179,0.00018999,7]
[377545417,1754439038810,-94973.71484355,0.00018999,7]
[377545418,1754439038819,-12341043.70184925,0.00019,2]
[377545424,1754439040821,-101.95380975,0.00018998,2]
[377545425,1754439040963,-398.04619025,0.00018998,2]
[377545426,1754439040979,-195.12697664,0.00018998,2]
[377545427,1754439041092,-304.87302336,0.00018998,2]
[377545428,1754439041108,-319.10143137,0.00018998,2]
[377545429,1754439041125,-3268854.93597146,0.00019,2]
[377545430,1754439041141,-250.0,0.00019,2]
[377545431,1754439041157,-250.0,0.00019,2]
[377545432,1754439041172,-250.0,0.00019,2]
[377545433,1754439041190,-250.0,0.00019,2]
[377545434,1754439041208,-250.0,0.00019,2]
[377545435,1754439041225,-250.0,0.00019,2]
[377545436,1754439041241,-250.0,0.00019,2]
[377545437,1754439041257,-250.0,0.00019,2]
[377545438,1754439041275,-250.0,0.00019,2]
[377545439,1754439041292,-250.0,0.00019,2]
[377545440,1754439041308,-250.0,0.00019,2]
[377545441,1754439041325,-250.0,0.00019,2]
[377545442,1754439041342,-250.0,0.00019,2]
[377545443,1754439041357,-250.0,0.00019,2]
[377545444,1754439041372,-250.0,0.00019,2]
[377545445,1754439041388,-250.0,0.00019,2]
[377545446,1754439041403,-250.0,0.00019,2]
[377545447,1754439041418,-250.0,0.00019,2]
[377545448,1754439041435,-250.0,0.00019,2]
[377545449,1754439041450,-250.0,0.00019,2]
[377545450,1754439041465,-250.0,0.00019,2]
[377545451,1754439041481,-250.0,0.00019,2]
[377545452,1754439041496,-250.0,0.00019,2]
[377545453,1754439041512,-250.0,0.00019,2]
[377545454,1754439041527,-250.0,0.00019,2]
[377545455,1754439041544,-250.0,0.00019,2]
[377545456,1754439041560,-250.0,0.00019,2]
[377545457,1754439041575,-261.5,0.00019,2]
[377545458,1754439041592,-1000.0,0.00019101,2]
[377545459,1754439041608,-150.0,0.00019177,2]
[377545460,1754439041623,-173.6,0.00019389,2]
[377545461,1754439041638,-1000.0,0.00019521,2]
[377545462,1754439041652,-1000.0,0.00019521,2]
[377545463,1754439041667,-500.0,0.00019521,2]
[377545464,1754439041683,-1000.0,0.00019521,2]
[377545465,1754439041699,-1000.0,0.00019521,2]
[377545466,1754439041714,-500.0,0.00019521,2]
[377545467,1754439041731,-1000.0,0.00019521,2]
[377545468,1754439041746,-500.0,0.00019521,2]
[377545469,1754439041763,-1000.0,0.00019521,2]
[377545470,1754439041777,-1000.0,0.00019521,2]
[377545471,1754439041792,-500.0,0.00019521,2]
[377545472,1754439041809,-416.93,0.00019537,2]
[377545473,1754439041823,-150.89,0.00019656,2]
[377545474,1754439041838,-537.24,0.000198,2]
[377545475,1754439041853,-151.21,0.000198,2]
[377545476,1754439041868,-151.21,0.000198,2]
[377545477,1754439041883,-151.21,0.000198,2]
[377545478,1754439041898,-151.21,0.000198,2]
[377545479,1754439041913,-151.21,0.000198,2]
[377545480,1754439041929,-151.21,0.000198,2]
[377545481,1754439041945,-151.21,0.000198,2]
[377545482,1754439041961,-151.21,0.000198,2]
[377545483,1754439041977,-151.21,0.000198,2]
[377545484,1754439041993,-151.21,0.000198,2]
[377545485,1754439042282,-151.21,0.000198,2]
[377545486,1754439042304,-151.21,0.000198,2]
[377545487,1754439042314,-151.21,0.000198,2]
[377545488,1754439042325,-151.21,0.000198,2]
[377545489,1754439042335,-151.21,0.000198,2]
[377545490,1754439042346,-151.21,0.000198,2]
[377545491,1754439042357,-151.21,0.000198,2]
[377545492,1754439042366,-151.21,0.000198,2]
[377545493,1754439042375,-707.27,0.00019812,2]
[377545494,1754439042384,-234.67381948,0.0002,4]
[377545495,1754439042394,-26689.23643736,0.00020066,2]
[377545496,1754439042405,-1000.0,0.00020068,2]
[377545497,1754439042414,-1500.0,0.00020068,2]
[377545498,1754439042423,-1003.61887662,0.00020068,2]
[377545499,1754439042433,-500.0,0.00020068,2]
[377545500,1754439042442,-1500.0,0.00020068,2]
[377545501,1754439042451,-1500.0,0.00020068,2]
[377545502,1754439042461,-416.93,0.0002027,2]
[377545503,1754439042471,-250.0,0.00020482,2]
[377545504,1754439042480,-250.0,0.0002057,2]
[377545505,1754439042490,-1006.1394395,0.00020616,2]
[377545506,1754439042501,-1500.0,0.00020616,2]
[377545507,1754439042510,-2000.0,0.00020616,2]
[377545508,1754439042519,-420.0,0.0002068,2]
[377545509,1754439042529,-161.0,0.0002068,2]
[377545510,1754439042539,-173.6,0.00020682,2]
[377545511,1754439042549,-250.0,0.00020695,2]
[377545512,1754439042559,-300.0,0.00020695,2]
[377545513,1754439042570,-1680.0,0.0002078,2]
[377545514,1754439042580,-150.0,0.00021,2]
[377545515,1754439042591,-416.93,0.00021003,2]
[377545516,1754439042600,-2500.0,0.00021164,2]
[377545517,1754439042609,-707.27,0.00021542,2]
[377545518,1754439042620,-3000.0,0.00021712,2]
[377545519,1754439042629,-416.93,0.00021735,2]
[377545520,1754439042639,-625.0,0.00021917,2]
[377545521,1754439042648,-150.0,0.00021918,2]
[377545522,1754439042658,-173.6,0.00021974,2]
[377545523,1754439042667,-193.0,0.0002218,2]
[377545524,1754439042676,-3500.0,0.0002226,2]
[377545525,1754439042687,-416.93,0.00022468,2]
[377545526,1754439042697,-587.0,0.00022541,2]
[377545527,1754439042707,-600.0,0.00022618,2]
[377545528,1754439042717,-194.04,0.00022618,2]
[377545529,1754439042728,-2351.0,0.00022761,2]
[377545530,1754439042740,-3014.1820139,0.00022808,2]
[377545531,1754439042750,-150.0,0.00023208,2]
[377545532,1754439042760,-150.0,0.00023211,2]
[377545533,1754439042769,-173.6,0.00023267,2]
[377545534,1754439042778,-707.27,0.00023273,2]
[377545535,1754439042788,-150.0,0.0002336,2]
[377545536,1754439042797,-189.0,0.0002337,2]
[377545537,1754439042806,-476.60235448,0.00023462,2]
[377545538,1754439042815,-921.38215386,0.000245,2]
[377545539,1754439042825,-457.32188848,0.00024532,2]
[377545540,1754439042834,-211.47411252,0.00024532,2]
[377545541,1754439042843,-185.0,0.0002455,2]
[377545542,1754439042853,-483.0,0.00024571,2]
[377545543,1754439042862,-59763.9661703,0.000248,2]
[377545544,1754439042871,-259.182134,0.00024806,2]
[377545545,1754439042881,-220.34127436,0.000249,2]
[377545546,1754439042891,-150.99,0.00024907,2]
[377545547,1754439042901,-625.0,0.00024931,2]
[377545548,1754439042910,-3292.0,0.00024931,2]
[377545549,1754439042919,-707.27,0.00025003,2]
[377545550,1754439042929,-11974.24,0.00025602,2]
[377545551,1754439042938,-181.0,0.0002573,2]
[377545552,1754439042948,-3899.61194907,0.00025925,2]
[377545553,1754439042958,-165.43,0.00025956,2]
[377545554,1754439042967,-1176.05,0.00025956,2]
[377545555,1754439042976,-165.43,0.00025956,2]
[377545556,1754439042985,-165.43,0.00025956,2]
[377545557,1754439042995,-3643.45,0.00026047,2]
[377545558,1754439043004,-1000.0,0.00026153,2]
[377545559,1754439043014,-1118.11,0.00026356,2]
[377545560,1754439043023,-1118.11,0.00026369,2]
[377545561,1754439043032,-1118.11,0.00026383,2]
[377545562,1754439043042,-1118.11,0.00026397,2]
[377545563,1754439043051,-1118.11,0.00026411,2]
[377545564,1754439043060,-175.0,0.00026424,7]
[377545565,1754439043070,-1118.11,0.00026425,2]
[377545566,1754439043079,-439.2,0.00026437,2]
[377545567,1754439043088,-860.77,0.00026439,2]
[377545568,1754439043097,-1118.11,0.00026439,2]
[377545569,1754439043107,-1118.11,0.00026453,2]
[377545570,1754439043116,-1118.11,0.00026466,2]
[377545571,1754439043125,-1118.11,0.0002648,2]
[377545572,1754439043135,-1118.11,0.00026494,2]
[377545573,1754439043144,-1118.11,0.00026508,2]
[377545574,1754439043153,-1118.11,0.00026522,2]
[377545576,1754439043163,-1118.11,0.00026536,2]
[377545577,1754439043172,-1118.11,0.0002655,2]
[377545578,1754439043181,-1118.11,0.00026563,2]
[377545579,1754439043191,-1118.11,0.00026577,2]
[377545580,1754439043203,-1118.11,0.00026591,2]
[377545581,1754439043212,-567.84,0.00026591,2]
[377545582,1754439043221,-9999.99,0.00026591,2]
[377545583,1754439043230,-26664.17,0.00026591,2]
[377545584,1754439043243,-1118.11,0.00026605,2]
[377545585,1754439043254,-1118.11,0.00026619,2]
[377545586,1754439043263,-707.27,0.00026734,2]
[377545587,1754439043274,-177.0,0.0002692,2]
[377545588,1754439043283,-1000.0,0.000271,2]
[377545589,1754439043293,-164.44,0.00027131,2]
[377545590,1754439043302,-2428.0,0.00027307,2]
[377545591,1754439043311,-166.88,0.0002737,2]
[377545592,1754439043321,-556.96,0.00027397,2]
[377545593,1754439043330,-329.14,0.00027397,2]
[377545594,1754439043344,-1000.0,0.00027441,2]
[377545595,1754439043355,-3274.75,0.00027657,2]
[377545596,1754439043366,-167.6,0.00027673,2]
[377545597,1754439043379,-169.67,0.00027688,2]
[377545598,1754439043393,-619.16434597,0.00027841,2]
[377545599,1754439043404,-380.7899267,0.00027841,2]
[377545600,1754439043414,-174.0,0.000281,2]
[377545601,1754439043423,-707.27,0.00028464,2]
[377545602,1754439043432,-556.96,0.00028767,2]
[377545603,1754439043441,-329.14,0.00028767,2]
[377545604,1754439043450,-167.6,0.00029022,2]
[377545605,1754439043460,-170.0,0.0002929,2]
[377545606,1754439043470,-1000.0,0.00029422,2]
[377545607,1754439043479,-166.88,0.00029629,2]
[377545608,1754439043489,-556.96,0.00030136,2]
[377545609,1754439043498,-329.14,0.00030136,2]
[377545610,1754439043508,-200.0,0.00030137,5]
[377545611,1754439043517,-707.27,0.00030194,2]
[377545612,1754439043527,-600.0,0.00030271,2]
[377545613,1754439043536,-194.04,0.00030271,2]
[377545614,1754439043546,-167.6,0.00030372,3]
[377545615,1754439043555,-166.0,0.0003047,2]
[377545616,1754439043565,-537.24,0.00030656,2]
[377545617,1754439043575,-206.46,0.00030656,2]
[377545618,1754439043584,-150.0,0.00030656,2]
[377545619,1754439043594,-1179.64,0.00030656,2]
[377545620,1754439043603,-165.43,0.00030656,2]
[377545621,1754439043613,-359.18,0.00030656,2]
[377545622,1754439043624,-1179.64,0.00030656,2]
[377545623,1754439043634,-556.96,0.00031506,2]
[377545624,1754439043643,-329.14,0.00031506,2]
[377545625,1754439043654,-193.59,0.00031591,120]
[377545626,1754439043663,-162.0,0.0003165,2]
[377545627,1754439043672,-167.6,0.00031722,3]
[377545628,1754439043682,-181.84,0.0003187,2]
[377545629,1754439043691,-166.88,0.00031887,2]
[377545630,1754439043702,-707.27,0.00031925,2]
[377545631,1754439043711,-172.6,0.00032509,2]
[377545632,1754439043721,-274.0,0.00032553,5]
[377545633,1754439043731,-1000.0,0.00032691,2]
[377545634,1754439043740,-172.6,0.00032739,14]
[377545635,1754439043751,-158.0,0.0003284,2]
[377545636,1754439043760,-474.19539616,0.00032876,2]
[377545637,1754439043769,-392.73200906,0.00032876,2]
[377545638,1754439043779,-500.0,0.00032876,2]
[377545639,1754439043789,-500.0,0.00032876,2]
[377545640,1754439043799,-566.99680983,0.00032876,2]
[377545641,1754439043809,-352.4884728,0.00032876,2]
[377545642,1754439043819,-500.0,0.00032876,2]
[377545643,1754439043828,-571.17744125,0.00032876,2]
[377545644,1754439043838,-437.0241892,0.00032876,2]
[377545645,1754439043847,-556.96,0.00032876,2]
[377545646,1754439043856,-329.14,0.00032876,2]
[377545647,1754439043866,-28219.48,0.000329,14]
[377545648,1754439043875,-814.06,0.000329,7]
[377545649,1754439043885,-3118.18,0.000329,14]
[377545650,1754439043895,-3385.2941589,0.00033,2]
[377545651,1754439043905,-892.0,0.00033039,2]
[377545652,1754439043914,-1170.0,0.00033039,2]
[377545653,1754439043924,-167.6,0.00033072,4]
[377545654,1754439043933,-4138.0,0.00033077,2]
[377545655,1754439043943,-6071.0,0.00033077,2]
[377545656,1754439043952,-21424.0,0.00033077,2]
[377545657,1754439043962,-271.63,0.00033383,2]
[377545658,1754439043971,-707.27,0.00033655,2]
[377545659,1754439043981,-600.0,0.00034007,2]
[377545660,1754439043992,-194.04,0.00034007,2]
[377545661,1754439044003,-154.0,0.0003402,2]
[377545662,1754439044013,-556.96,0.00034246,2]
[377545663,1754439044025,-329.14,0.00034246,2]
[377545664,1754439044036,-167.6,0.00034421,5]
[377545665,1754439044047,-511.0,0.00034473,2]
[377545666,1754439044057,-243.4,0.0003461,120]
[377545667,1754439044066,-176.78,0.0003461,2]
[377545668,1754439044078,-250.0,0.0003461,2]
[377545669,1754439044090,-27336.76,0.0003461,2]
[377545670,1754439044099,-240.66,0.0003461,2]
[377545671,1754439044110,-2751.0,0.0003461,120]
[377545672,1754439044119,-164.48,0.0003461,2]
[377545673,1754439044131,-200.0,0.0003461,2]
[377545674,1754439044141,-234.2,0.0003461,2]
[377545675,1754439044151,-216.12,0.0003461,2]
[377545676,1754439044163,-150.0,0.0003461,2]
[377545677,1754439044172,-1500.0,0.0003461,120]
[377545678,1754439044181,-1453.48,0.0003461,2]
[377545679,1754439044191,-176.78,0.00034696,2]
[377545680,1754439044206,-203.0,0.00034742,2]
[377545681,1754439044216,-150.114,0.00034742,2]
[377545682,1754439044226,-150.0,0.00034742,2]
[377545683,1754439044238,-150.552,0.00034742,2]
[377545684,1754439044251,-204.59,0.00034742,2]
[377545685,1754439044261,-150.274,0.00034742,2]
[377545686,1754439044271,-295.121,0.00034742,2]
[377545687,1754439044282,-253.434,0.00034742,2]
[377545688,1754439044293,-292.297,0.00034742,2]
[377545689,1754439044303,-185.805,0.00034742,2]
[377545690,1754439044315,-159.51,0.00034742,2]
[377545691,1754439044327,-204.085,0.00034742,2]
[377545692,1754439044336,-206.439,0.00034742,2]
[377545693,1754439044346,-250.0,0.00034742,2]
[377545694,1754439044356,-151.0,0.00034742,2]
[377545695,1754439044365,-809.0,0.00034742,2]
[377545696,1754439044374,-3361.0,0.00034742,2]
[377545697,1754439044384,-1251.0,0.00034742,2]
[377545698,1754439044393,-955.0,0.00034742,2]
[377545699,1754439044404,-1293.0,0.00034742,2]
[377545700,1754439044414,-2024.0,0.00034742,2]
[377545701,1754439044424,-564.0,0.00034742,2]
[377545702,1754439044437,-958.0,0.00034742,2]
[377545703,1754439044447,-597.0,0.00034742,2]
[377545704,1754439044459,-1651.0,0.00034742,2]
[377545705,1754439044469,-193.59,0.0003475,120]
[377545706,1754439044479,-176.78,0.00034783,2]
[377545707,1754439044490,-2000.0,0.000348,2]
[377545708,1754439044500,-176.78,0.00034869,2]
[377545709,1754439044510,-814.06,0.000349,7]
[377545710,1754439044520,-176.78,0.00034956,2]
[377545711,1754439044530,-28219.48,0.00035,14]
[377545712,1754439044539,-3118.18,0.00035,14]
[377545713,1754439044551,-198.29127357,0.00035,2]
[377545714,1754439044562,-150.0,0.000352,2]
[377545715,1754439044573,-707.27,0.00035385,2]
[377545716,1754439044583,-1958.15042199,0.00035606,2]
[377545717,1754439044596,-316.52,0.00035616,14]
[377545718,1754439044606,-1330.79,0.00035616,14]
[377545719,1754439044616,-400.0,0.00035616,14]
[377545720,1754439044626,-500.0,0.00035616,30]
[377545721,1754439044636,-400.0,0.00035616,14]
[377545722,1754439044646,-436.4,0.00035616,14]
[377545723,1754439044656,-400.0,0.00035616,14]
[377545724,1754439044666,-400.0,0.00035616,14]
[377545725,1754439044675,-400.0,0.00035616,14]
[377545726,1754439044684,-400.0,0.00035616,14]
[377545727,1754439044695,-400.0,0.00035616,14]
[377545728,1754439044704,-400.0,0.00035616,14]
[377545729,1754439044715,-400.0,0.00035616,14]
[377545730,1754439044726,-400.0,0.00035616,14]
[377545731,1754439044736,-400.0,0.00035616,14]
[377545732,1754439044746,-400.0,0.00035616,14]
[377545733,1754439044756,-400.0,0.00035616,14]
[377545734,1754439044766,-400.0,0.00035616,14]
[377545735,1754439044775,-400.0,0.00035616,14]
[377545736,1754439044785,-400.0,0.00035616,14]
[377545737,1754439044795,-400.0,0.00035616,14]
[377545738,1754439044804,-400.0,0.00035616,14]
[377545739,1754439044814,-265.53758878,0.00035616,14]
[377545740,1754439044823,-400.0,0.00035616,14]
[377545741,1754439044833,-400.0,0.00035616,14]
[377545742,1754439044843,-400.0,0.00035616,14]
[377545743,1754439044852,-400.0,0.00035616,14]
[377545744,1754439044863,-400.0,0.00035616,14]
[377545745,1754439044872,-400.0,0.00035616,14]
[377545746,1754439044881,-400.0,0.00035616,14]
[377545747,1754439044892,-400.0,0.00035616,14]
[377545748,1754439044902,-460.45405884,0.00035616,14]
[377545749,1754439044911,-400.0,0.00035616,14]
[377545750,1754439044921,-400.0,0.00035616,14]
[377545751,1754439044930,-400.0,0.00035616,14]
[377545752,1754439044940,-400.0,0.00035616,14]
[377545753,1754439044950,-400.0,0.00035616,2]
[377545754,1754439044959,-441.35585265,0.00035616,14]
[377545755,1754439044968,-400.0,0.00035616,14]
[377545756,1754439044978,-400.0,0.00035616,14]
[377545757,1754439044987,-400.0,0.00035616,14]
[377545758,1754439044997,-400.0,0.00035616,14]
[377545759,1754439045007,-400.0,0.00035616,14]
[377545760,1754439045016,-400.0,0.00035616,14]
[377545761,1754439045026,-400.0,0.00035616,14]
[377545762,1754439045035,-500.0,0.00035616,14]
[377545763,1754439045045,-509.9970624,0.00035616,14]
[377545764,1754439045055,-400.0,0.00035616,14]
[377545765,1754439045064,-400.0,0.00035616,14]
[377545766,1754439045074,-400.0,0.00035616,14]
[377545767,1754439045084,-400.0,0.00035616,14]
[377545768,1754439045093,-400.0,0.00035616,14]
[377545769,1754439045282,-400.0,0.00035616,14]
[377545770,1754439045293,-300.0,0.00035616,14]
[377545771,1754439045302,-172.55708442,0.00035616,14]
[377545772,1754439045312,-400.0,0.00035616,14]
[377545773,1754439045321,-400.0,0.00035616,14]
[377545774,1754439045331,-400.0,0.00035616,14]
[377545775,1754439045342,-400.0,0.00035616,14]
[377545776,1754439045352,-400.0,0.00035616,14]
[377545777,1754439045364,-400.0,0.00035616,14]
[377545778,1754439045379,-483.48,0.00035616,14]
[377545779,1754439045389,-400.0,0.00035616,14]
[377545780,1754439045399,-802.14,0.00035616,14]
[377545781,1754439045409,-400.0,0.00035616,14]
[377545782,1754439045419,-400.0,0.00035616,14]
[377545783,1754439045428,-502.79,0.00035616,14]
[377545784,1754439045438,-400.0,0.00035616,14]
[377545785,1754439045449,-400.0,0.00035616,14]
[377545786,1754439045460,-400.0,0.00035616,5]
[377545787,1754439045469,-1520.6,0.00035616,14]
[377545788,1754439045479,-400.0,0.00035616,14]
[377545789,1754439045490,-400.0,0.00035616,14]
[377545790,1754439045501,-400.0,0.00035616,14]
[377545791,1754439045511,-1031.7,0.00035616,14]
[377545792,1754439045524,-400.0,0.00035616,14]
[377545793,1754439045534,-400.0,0.00035616,14]
[377545794,1754439045546,-400.0,0.00035616,14]
[377545795,1754439045556,-400.0,0.00035616,14]
[377545796,1754439045565,-1056.67,0.00035616,14]
[377545797,1754439045576,-400.0,0.00035616,14]
[377545798,1754439045585,-192.36827046,0.00035616,14]
[377545799,1754439045596,-400.0,0.00035616,14]
[377545800,1754439045606,-400.0,0.00035616,14]
[377545801,1754439045616,-400.0,0.00035616,14]
[377545802,1754439045625,-400.0,0.00035616,14]
[377545803,1754439045636,-400.0,0.00035616,14]
[377545804,1754439045646,-400.0,0.00035616,14]
[377545805,1754439045656,-400.0,0.00035616,14]
[377545806,1754439045666,-400.0,0.00035616,14]
[377545807,1754439045677,-400.0,0.00035616,14]
[377545808,1754439045687,-400.0,0.00035616,14]
[377545809,1754439045697,-400.0,0.00035616,14]
[377545810,1754439045706,-400.0,0.00035616,14]
[377545811,1754439045716,-400.0,0.00035616,14]
[377545812,1754439045726,-400.0,0.00035616,14]
[377545813,1754439045736,-400.0,0.00035616,2]